[Event "Titled Tuesday Blitz September 27 Early 2022"]
[White "Odegov, Artem"]
[Black "Shapiro, Daniel"]
[WhiteFideId "34183644"]
[BlackFideId "2001780"]
[WhiteElo "2286"]
[BlackElo "2209"]
[Result "1-0"]
[Round "01"]
[TimeControl "180+1"]
[Date "2022.09.27"]
[WhiteClock "0:00:41"]
[BlackClock "0:00:01"]

1. d4 {[%clk 0:03:00]}  Nf6 {[%clk 0:02:58]} 2. c4 {[%clk 0:03:00]}  e6 {[%clk 0:02:59]} 3. Nf3 {[%clk 0:03:00]}  b6 {[%clk 0:02:58]} 4. g3 {[%clk 0:02:59]}  Ba6 {[%clk 0:02:57]} 5. b3 {[%clk 0:02:59]}  Bb4+ {[%clk 0:02:56]} 6. Bd2 {[%clk 0:02:59]}  Be7 {[%clk 0:02:57]} 7. Bg2 {[%clk 0:02:59]}  c6 {[%clk 0:02:58]} 8. O-O {[%clk 0:02:59]}  d5 {[%clk 0:02:58]} 9. Ne5 {[%clk 0:02:59]}  Nfd7 {[%clk 0:02:53]} 10. Nxd7 {[%clk 0:02:59]}  Nxd7 {[%clk 0:02:53]} 11. Bc3 {[%clk 0:02:59]}  O-O {[%clk 0:02:52]} 12. Nd2 {[%clk 0:02:59]}  Rc8 {[%clk 0:02:51]} 13. Re1 {[%clk 0:02:59]}  b5 {[%clk 0:02:49]} 14. c5 {[%clk 0:02:59]}  e5 {[%clk 0:02:49]} 15. b4 {[%clk 0:02:51]}  exd4 {[%clk 0:02:48]} 16. Bxd4 {[%clk 0:02:52]}  Bf6 {[%clk 0:02:48]} 17. Nb3 {[%clk 0:02:51]}  Bxd4 {[%clk 0:02:32]} 18. Nxd4 {[%clk 0:02:52]}  Qf6 {[%clk 0:02:30]} 19. Qd2 {[%clk 0:02:46]}  Ne5 {[%clk 0:02:29]} 20. Rad1 {[%clk 0:02:44]}  Nc4 {[%clk 0:02:28]} 21. Qc2 {[%clk 0:02:38]}  Rc7 {[%clk 0:02:21]} 22. e4 {[%clk 0:02:35]}  dxe4 {[%clk 0:02:14]} 23. Bxe4 {[%clk 0:02:36]}  g6 {[%clk 0:02:14]} 24. Bg2 {[%clk 0:02:32]}  Rd8 {[%clk 0:02:11]} 25. Nb3 {[%clk 0:02:18]}  Rcd7 {[%clk 0:01:59]} 26. Rxd7 {[%clk 0:02:15]}  Rxd7 {[%clk 0:02:00]} 27. h4 {[%clk 0:02:09]}  h5 {[%clk 0:01:57]} 28. Qe4 {[%clk 0:02:06]}  Rc7 {[%clk 0:01:33]} 29. Nd4 {[%clk 0:01:31]}  Kg7 {[%clk 0:01:18]} 30. Nf3 {[%clk 0:01:19]}  Bc8 {[%clk 0:01:04]} 31. Ng5 {[%clk 0:01:17]}  Bf5 {[%clk 0:00:53]} 32. Qe8 {[%clk 0:01:14]}  Rc8 {[%clk 0:00:41]} 33. Qe2 {[%clk 0:01:09]}  Rc7 {[%clk 0:00:31]} 34. Qe8 {[%clk 0:01:06]}  Rc8 {[%clk 0:00:30]} 35. Qe7 {[%clk 0:01:06]}  a5 {[%clk 0:00:20]} 36. a3 {[%clk 0:00:54]}  axb4 {[%clk 0:00:20]} 37. axb4 {[%clk 0:00:55]}  Nb2 {[%clk 0:00:04]} 38. Qd6 {[%clk 0:00:43]}  Qxd6 {[%clk 0:00:02]} 39. cxd6 {[%clk 0:00:44]}  Rd8 {[%clk 0:00:03]} 40. Re7 {[%clk 0:00:43]}  Rxd6 {[%clk 0:00:02]} 41. Rxf7+ {[%clk 0:00:44]}  Kg8 {[%clk 0:00:03]} 42. Rc7 {[%clk 0:00:44]}  Nd3 {[%clk 0:00:02]} 43. Bxc6 {[%clk 0:00:42]}  Nxb4 {[%clk 0:00:01]} 44. Bxb5 {[%clk 0:00:41]}  Bg4 {[%clk 0:00:01]} 45. Bc4+ {[%clk 0:00:41]} 1-0


[Site "https://www.chess.com"]

[Event "Titled Tuesday Blitz September 27 Early 2022"]
[White "Omelja, Artem"]
[Black "Torres Boch, Jose Francisco"]
[WhiteFideId "14119846"]
[BlackFideId "2278383"]
[WhiteElo "2382"]
[BlackElo "2088"]
[Result "1-0"]
[Round "01"]
[TimeControl "180+1"]
[Date "2022.09.27"]
[WhiteClock "0:00:07"]
[BlackClock "0:00:01"]

1. d4 {[%clk 0:03:00]}  Nf6 {[%clk 0:02:56]} 2. c4 {[%clk 0:02:52]}  e6 {[%clk 0:02:56]} 3. Nf3 {[%clk 0:02:47]}  b6 {[%clk 0:02:45]} 4. a3 {[%clk 0:02:42]}  Bb7 {[%clk 0:02:39]} 5. Nc3 {[%clk 0:02:32]}  d5 {[%clk 0:02:40]} 6. Bg5 {[%clk 0:02:31]}  Be7 {[%clk 0:02:32]} 7. e3 {[%clk 0:02:31]}  O-O {[%clk 0:02:23]} 8. cxd5 {[%clk 0:02:21]}  Nxd5 {[%clk 0:02:14]} 9. Nxd5 {[%clk 0:02:20]}  Bxd5 {[%clk 0:02:03]} 10. Bxe7 {[%clk 0:02:17]}  Qxe7 {[%clk 0:02:04]} 11. Be2 {[%clk 0:02:17]}  c5 {[%clk 0:01:58]} 12. O-O {[%clk 0:02:15]}  cxd4 {[%clk 0:01:57]} 13. Nxd4 {[%clk 0:02:16]}  Nc6 {[%clk 0:01:54]} 14. Nb5 {[%clk 0:02:09]}  Rfd8 {[%clk 0:01:47]} 15. Qc2 {[%clk 0:02:08]}  Rac8 {[%clk 0:01:46]} 16. Nc3 {[%clk 0:02:08]}  Ne5 {[%clk 0:01:39]} 17. Ba6 {[%clk 0:01:26]}  Bb7 {[%clk 0:01:33]} 18. Bxb7 {[%clk 0:01:26]}  Qxb7 {[%clk 0:01:34]} 19. Rad1 {[%clk 0:01:27]}  Qc6 {[%clk 0:01:18]} 20. Rd2 {[%clk 0:01:15]}  Rxd2 {[%clk 0:01:07]} 21. Qxd2 {[%clk 0:01:15]}  Nc4 {[%clk 0:01:07]} 22. Qe2 {[%clk 0:01:15]}  Nxb2 {[%clk 0:01:05]} 23. Nb5 {[%clk 0:01:06]}  Qc2 {[%clk 0:00:36]} 24. Qf3 {[%clk 0:01:03]}  a6 {[%clk 0:00:30]} 25. Nd6 {[%clk 0:01:03]}  Rf8 {[%clk 0:00:25]} 26. Qb7 {[%clk 0:01:01]}  Qb3 {[%clk 0:00:15]} 27. Qxa6 {[%clk 0:00:53]}  h6 {[%clk 0:00:15]} 28. h3 {[%clk 0:00:48]}  Nd3 {[%clk 0:00:14]} 29. Qa7 {[%clk 0:00:34]}  Nc5 {[%clk 0:00:08]} 30. Rc1 {[%clk 0:00:26]}  Qb2 {[%clk 0:00:06]} 31. Rd1 {[%clk 0:00:26]}  Qb3 {[%clk 0:00:06]} 32. Rd4 {[%clk 0:00:22]}  Qb1+ {[%clk 0:00:02]} 33. Kh2 {[%clk 0:00:22]}  Qf1 {[%clk 0:00:02]} 34. Kg3 {[%clk 0:00:18]}  Nd3 {[%clk 0:00:01]} 35. Ne4 {[%clk 0:00:07]} 1-0


[Site "https://www.chess.com"]

[Event "Titled Tuesday Blitz September 27 Early 2022"]
[White "Orlov, Georgi"]
[Black "Lauridsen, Jesper Morch"]
[WhiteFideId "2011271"]
[BlackFideId "1401890"]
[WhiteElo "2605"]
[BlackElo "2225"]
[Result "1-0"]
[Round "01"]
[TimeControl "180+1"]
[Date "2022.09.27"]
[WhiteClock "0:01:59"]
[BlackClock "0:00:44"]

1. e4 {[%clk 0:02:52]}  c5 {[%clk 0:02:59]} 2. Nf3 {[%clk 0:02:51]}  e6 {[%clk 0:02:59]} 3. c3 {[%clk 0:02:50]}  Nf6 {[%clk 0:02:58]} 4. e5 {[%clk 0:02:50]}  Nd5 {[%clk 0:02:58]} 5. d4 {[%clk 0:02:49]}  cxd4 {[%clk 0:02:58]} 6. cxd4 {[%clk 0:02:49]}  d6 {[%clk 0:02:58]} 7. Bc4 {[%clk 0:02:47]}  Nc6 {[%clk 0:02:57]} 8. O-O {[%clk 0:02:45]}  Be7 {[%clk 0:02:57]} 9. Qe2 {[%clk 0:02:44]}  O-O {[%clk 0:02:57]} 10. Rd1 {[%clk 0:02:44]}  Bd7 {[%clk 0:02:53]} 11. Bxd5 {[%clk 0:02:38]}  exd5 {[%clk 0:02:53]} 12. Bf4 {[%clk 0:02:37]}  dxe5 {[%clk 0:02:51]} 13. dxe5 {[%clk 0:02:37]}  Be6 {[%clk 0:02:35]} 14. Nc3 {[%clk 0:02:35]}  Qa5 {[%clk 0:02:33]} 15. a3 {[%clk 0:02:31]}  Rad8 {[%clk 0:02:29]} 16. b4 {[%clk 0:02:31]}  Qb6 {[%clk 0:02:17]} 17. Na4 {[%clk 0:02:29]}  Qc7 {[%clk 0:02:15]} 18. Rac1 {[%clk 0:02:27]}  Qd7 {[%clk 0:02:05]} 19. Nc5 {[%clk 0:02:20]}  Bxc5 {[%clk 0:02:04]} 20. Rxc5 {[%clk 0:02:19]}  b6 {[%clk 0:01:43]} 21. Rcc1 {[%clk 0:02:15]}  Ne7 {[%clk 0:01:01]} 22. Nd4 {[%clk 0:02:11]}  Bg4 {[%clk 0:00:54]} 23. f3 {[%clk 0:02:09]}  Ng6 {[%clk 0:00:51]} 24. Bg5 {[%clk 0:02:04]}  Bf5 {[%clk 0:00:45]} 25. Bxd8 {[%clk 0:02:02]}  Qxd8 {[%clk 0:00:44]} 26. Nxf5 {[%clk 0:01:59]} 1-0


[Site "https://www.chess.com"]

[Event "Titled Tuesday Blitz September 27 Early 2022"]
[White "Ovchinnikov, Vsevolod"]
[Black "Stremavicius, Titas"]
[WhiteFideId "24176842"]
[BlackFideId "12804444"]
[WhiteElo "2501"]
[BlackElo "2856"]
[Result "0-1"]
[Round "01"]
[TimeControl "180+1"]
[Date "2022.09.27"]
[WhiteClock "0:00:01"]
[BlackClock "0:00:12"]

1. Nf3 {[%clk 0:03:00]}  f5 {[%clk 0:02:56]} 2. b3 {[%clk 0:03:00]}  d6 {[%clk 0:02:54]} 3. d4 {[%clk 0:02:59]}  g6 {[%clk 0:02:54]} 4. Bb2 {[%clk 0:03:00]}  Bg7 {[%clk 0:02:55]} 5. g3 {[%clk 0:03:01]}  Nh6 {[%clk 0:02:55]} 6. Bg2 {[%clk 0:03:01]}  O-O {[%clk 0:02:55]} 7. O-O {[%clk 0:03:02]}  Nf7 {[%clk 0:02:55]} 8. Nbd2 {[%clk 0:02:10]}  e5 {[%clk 0:02:54]} 9. e4 {[%clk 0:01:52]}  f4 {[%clk 0:02:49]} 10. Nc4 {[%clk 0:01:39]}  Nc6 {[%clk 0:02:47]} 11. dxe5 {[%clk 0:01:38]}  Nfxe5 {[%clk 0:02:10]} 12. Nfxe5 {[%clk 0:01:35]}  Nxe5 {[%clk 0:02:10]} 13. Nxe5 {[%clk 0:01:35]}  dxe5 {[%clk 0:02:07]} 14. Qxd8 {[%clk 0:01:16]}  Rxd8 {[%clk 0:02:07]} 15. Rfd1 {[%clk 0:01:14]}  Be6 {[%clk 0:02:01]} 16. f3 {[%clk 0:01:11]}  g5 {[%clk 0:01:59]} 17. g4 {[%clk 0:01:05]}  Kf7 {[%clk 0:01:58]} 18. Kf2 {[%clk 0:00:54]}  h5 {[%clk 0:01:54]} 19. h3 {[%clk 0:00:54]}  Kf6 {[%clk 0:01:52]} 20. Ba3 {[%clk 0:00:53]}  Bf8 {[%clk 0:01:51]} 21. Rxd8 {[%clk 0:00:47]}  Rxd8 {[%clk 0:01:51]} 22. Bxf8 {[%clk 0:00:47]}  Rxf8 {[%clk 0:01:52]} 23. Rd1 {[%clk 0:00:47]}  Ke7 {[%clk 0:01:47]} 24. Bf1 {[%clk 0:00:44]}  c6 {[%clk 0:01:38]} 25. a3 {[%clk 0:00:36]}  a5 {[%clk 0:01:35]} 26. Rd2 {[%clk 0:00:33]}  b5 {[%clk 0:01:12]} 27. Rd1 {[%clk 0:00:33]}  Rb8 {[%clk 0:01:12]} 28. Rd2 {[%clk 0:00:32]}  h4 {[%clk 0:01:10]} 29. Ke1 {[%clk 0:00:31]}  c5 {[%clk 0:01:09]} 30. Kd1 {[%clk 0:00:26]}  a4 {[%clk 0:00:58]} 31. bxa4 {[%clk 0:00:13]}  bxa4 {[%clk 0:00:58]} 32. Kc1 {[%clk 0:00:14]}  c4 {[%clk 0:00:48]} 33. c3 {[%clk 0:00:02]}  Rb3 {[%clk 0:00:48]} 34. Rc2 {[%clk 0:00:03]}  Rxa3 {[%clk 0:00:48]} 35. Kb2 {[%clk 0:00:03]}  Rb3+ {[%clk 0:00:47]} 36. Ka2 {[%clk 0:00:04]}  Kd6 {[%clk 0:00:47]} 37. Be2 {[%clk 0:00:04]}  Kc5 {[%clk 0:00:48]} 38. Rc1 {[%clk 0:00:05]}  Bd7 {[%clk 0:00:44]} 39. Bd1 {[%clk 0:00:04]}  Rb6 {[%clk 0:00:39]} 40. Bc2 {[%clk 0:00:05]}  Rb8 {[%clk 0:00:27]} 41. Rd1 {[%clk 0:00:05]}  Bc6 {[%clk 0:00:27]} 42. Rd2 {[%clk 0:00:03]}  Rb7 {[%clk 0:00:14]} 43. Rd1 {[%clk 0:00:03]}  Ra7 {[%clk 0:00:15]} 44. Ka3 {[%clk 0:00:03]}  Ra8 {[%clk 0:00:15]} 45. Rd2 {[%clk 0:00:04]}  Rb8 {[%clk 0:00:15]} 46. Rd1 {[%clk 0:00:04]}  Rf8 {[%clk 0:00:15]} 47. Rd2 {[%clk 0:00:04]}  Rf7 {[%clk 0:00:16]} 48. Rd1 {[%clk 0:00:05]}  Rc7 {[%clk 0:00:15]} 49. Rd2 {[%clk 0:00:05]}  Rb7 {[%clk 0:00:15]} 50. Rd1 {[%clk 0:00:06]}  Rb8 {[%clk 0:00:16]} 51. Rd2 {[%clk 0:00:06]}  Ra8 {[%clk 0:00:10]} 52. Rd1 {[%clk 0:00:06]}  Kb6 {[%clk 0:00:11]} 53. Rd2 {[%clk 0:00:06]}  Kc7 {[%clk 0:00:11]} 54. Rd1 {[%clk 0:00:07]}  Ra5 {[%clk 0:00:12]} 55. Rd2 {[%clk 0:00:07]}  Rb5 {[%clk 0:00:12]} 56. Rd1 {[%clk 0:00:07]}  Rb8 {[%clk 0:00:12]} 57. Rd2 {[%clk 0:00:08]}  Rh8 {[%clk 0:00:13]} 58. Rd1 {[%clk 0:00:08]}  Rh7 {[%clk 0:00:14]} 59. Rd2 {[%clk 0:00:09]}  Rg7 {[%clk 0:00:15]} 60. Rd1 {[%clk 0:00:09]}  Rg8 {[%clk 0:00:15]} 61. Rd2 {[%clk 0:00:10]}  Rf8 {[%clk 0:00:16]} 62. Rd1 {[%clk 0:00:10]}  Rb8 {[%clk 0:00:17]} 63. Rd2 {[%clk 0:00:11]}  Ra8 {[%clk 0:00:15]} 64. Rd1 {[%clk 0:00:11]}  Ra7 {[%clk 0:00:15]} 65. Rd2 {[%clk 0:00:12]}  Kb6 {[%clk 0:00:16]} 66. Rd1 {[%clk 0:00:12]}  Kc5 {[%clk 0:00:16]} 67. Rd2 {[%clk 0:00:13]}  Rb7 {[%clk 0:00:17]} 68. Rd1 {[%clk 0:00:13]}  Rb3+ {[%clk 0:00:17]} 69. Bxb3 {[%clk 0:00:13]}  cxb3 {[%clk 0:00:18]} 70. Kb2 {[%clk 0:00:03]}  Kc4 {[%clk 0:00:16]} 71. Rd8 {[%clk 0:00:02]}  Bb5 {[%clk 0:00:14]} 72. Rd5 {[%clk 0:00:02]}  Ba6 {[%clk 0:00:11]} 73. Ra5 {[%clk 0:00:01]}  a3+ {[%clk 0:00:12]} 0-1


[Site "https://www.chess.com"]

[Event "Titled Tuesday Blitz September 27 Early 2022"]
[White "Ovezdurdyyeva, Jemal"]
[Black "Shyaamnikhil P"]
[WhiteFideId "14001888"]
[BlackFideId "5024218"]
[WhiteElo "1946"]
[BlackElo "2273"]
[Result "0-1"]
[Round "01"]
[TimeControl "180+1"]
[Date "2022.09.27"]
[WhiteClock "0:00:10"]
[BlackClock "0:00:16"]

1. e4 {[%clk 0:02:59]}  Nf6 {[%clk 0:02:57]} 2. e5 {[%clk 0:02:56]}  Nd5 {[%clk 0:02:57]} 3. Nf3 {[%clk 0:02:55]}  d6 {[%clk 0:02:56]} 4. c4 {[%clk 0:02:51]}  Nb6 {[%clk 0:02:55]} 5. exd6 {[%clk 0:02:45]}  exd6 {[%clk 0:02:53]} 6. d4 {[%clk 0:02:44]}  Be7 {[%clk 0:02:53]} 7. Bd3 {[%clk 0:02:42]}  Nc6 {[%clk 0:02:50]} 8. h3 {[%clk 0:02:40]}  Bf6 {[%clk 0:02:48]} 9. Be3 {[%clk 0:02:38]}  d5 {[%clk 0:02:33]} 10. c5 {[%clk 0:02:16]}  Nc4 {[%clk 0:02:31]} 11. Bc1 {[%clk 0:02:10]}  Nxd4 {[%clk 0:02:20]} 12. O-O {[%clk 0:01:59]}  Nxf3+ {[%clk 0:02:13]} 13. Qxf3 {[%clk 0:01:58]}  O-O {[%clk 0:02:04]} 14. Qe2 {[%clk 0:01:43]}  Ne5 {[%clk 0:01:55]} 15. Bc2 {[%clk 0:01:43]}  Re8 {[%clk 0:01:54]} 16. Nc3 {[%clk 0:01:41]}  Ng6 {[%clk 0:01:49]} 17. Qd3 {[%clk 0:01:39]}  c6 {[%clk 0:01:48]} 18. b4 {[%clk 0:01:33]}  Nf8 {[%clk 0:01:37]} 19. Bb2 {[%clk 0:01:32]}  g6 {[%clk 0:01:35]} 20. Rab1 {[%clk 0:01:29]}  Bf5 {[%clk 0:01:35]} 21. Qd2 {[%clk 0:01:29]}  Bxc2 {[%clk 0:01:33]} 22. Qxc2 {[%clk 0:01:30]}  Ne6 {[%clk 0:01:32]} 23. Ne2 {[%clk 0:01:24]}  Bxb2 {[%clk 0:01:29]} 24. Qxb2 {[%clk 0:01:24]}  Qh4 {[%clk 0:01:29]} 25. b5 {[%clk 0:01:22]}  Nxc5 {[%clk 0:01:27]} 26. bxc6 {[%clk 0:01:18]}  bxc6 {[%clk 0:01:21]} 27. Nd4 {[%clk 0:01:17]}  Nd3 {[%clk 0:01:19]} 28. Qc3 {[%clk 0:01:15]}  Ne5 {[%clk 0:01:17]} 29. Rb7 {[%clk 0:01:10]}  Re7 {[%clk 0:01:01]} 30. Rxe7 {[%clk 0:01:02]}  Qxe7 {[%clk 0:01:01]} 31. Nxc6 {[%clk 0:01:03]}  Nxc6 {[%clk 0:01:01]} 32. Qxc6 {[%clk 0:01:03]}  Rd8 {[%clk 0:01:00]} 33. Rd1 {[%clk 0:00:41]}  d4 {[%clk 0:01:00]} 34. Qf3 {[%clk 0:00:35]}  a5 {[%clk 0:00:55]} 35. Rd3 {[%clk 0:00:32]}  h5 {[%clk 0:00:50]} 36. Qf4 {[%clk 0:00:30]}  Qc5 {[%clk 0:00:42]} 37. Qf6 {[%clk 0:00:25]}  Rd7 {[%clk 0:00:33]} 38. Qf4 {[%clk 0:00:23]}  a4 {[%clk 0:00:29]} 39. a3 {[%clk 0:00:21]}  Qc4 {[%clk 0:00:20]} 40. Qb8+ {[%clk 0:00:20]}  Kg7 {[%clk 0:00:19]} 41. Qe5+ {[%clk 0:00:20]}  Kh7 {[%clk 0:00:19]} 42. Qg3 {[%clk 0:00:20]}  Qc1+ {[%clk 0:00:17]} 43. Kh2 {[%clk 0:00:20]}  Qc5 {[%clk 0:00:17]} 44. Qf4 {[%clk 0:00:20]}  Qd5 {[%clk 0:00:17]} 45. Kg1 {[%clk 0:00:18]}  Kg7 {[%clk 0:00:17]} 46. Qg3 {[%clk 0:00:19]}  Qd6 {[%clk 0:00:17]} 47. Qf3 {[%clk 0:00:18]}  Qe6 {[%clk 0:00:16]} 48. Qg3 {[%clk 0:00:18]}  Qf5 {[%clk 0:00:16]} 49. Kh2 {[%clk 0:00:14]}  f6 {[%clk 0:00:15]} 50. Kg1 {[%clk 0:00:14]}  g5 {[%clk 0:00:15]} 51. Kh2 {[%clk 0:00:14]}  h4 {[%clk 0:00:15]} 52. Qf3 {[%clk 0:00:14]}  Qxf3 {[%clk 0:00:15]} 53. gxf3 {[%clk 0:00:14]}  Kg6 {[%clk 0:00:15]} 54. Kg2 {[%clk 0:00:15]}  Kf5 {[%clk 0:00:15]} 55. Kf1 {[%clk 0:00:15]}  Ke5 {[%clk 0:00:15]} 56. Ke2 {[%clk 0:00:15]}  Kd5 {[%clk 0:00:16]} 57. Rd2 {[%clk 0:00:14]}  Rb7 {[%clk 0:00:16]} 58. Rc2 {[%clk 0:00:11]}  Rb3 {[%clk 0:00:16]} 59. Rc8 {[%clk 0:00:12]}  Rxa3 {[%clk 0:00:16]} 60. Rf8 {[%clk 0:00:12]}  Ke5 {[%clk 0:00:16]} 61. Re8+ {[%clk 0:00:12]}  Kf5 {[%clk 0:00:16]} 62. Rd8 {[%clk 0:00:12]}  Ra2+ {[%clk 0:00:16]} 63. Kd3 {[%clk 0:00:12]}  Rxf2 {[%clk 0:00:16]} 64. Kxd4 {[%clk 0:00:10]}  Rxf3 {[%clk 0:00:16]} 0-1


[Site "https://www.chess.com"]

[Event "Titled Tuesday Blitz September 27 Early 2022"]
[White "Ozates, Tuna"]
[Black "White, John S."]
[WhiteFideId "6354521"]
[BlackFideId "2502348"]
[WhiteElo "1887"]
[BlackElo "1906"]
[Result "1-0"]
[Round "01"]
[TimeControl "180+1"]
[Date "2022.09.27"]
[WhiteClock "0:02:48"]
[BlackClock "0:02:13"]

1. e4 {[%clk 0:03:00]}  c5 {[%clk 0:02:58]} 2. Nf3 {[%clk 0:03:00]}  e6 {[%clk 0:02:57]} 3. d4 {[%clk 0:03:00]}  cxd4 {[%clk 0:02:57]} 4. Nxd4 {[%clk 0:03:01]}  Nc6 {[%clk 0:02:56]} 5. Nc3 {[%clk 0:03:02]}  d6 {[%clk 0:02:55]} 6. Be3 {[%clk 0:03:02]}  Nf6 {[%clk 0:02:54]} 7. Be2 {[%clk 0:03:02]}  Be7 {[%clk 0:02:53]} 8. Qd2 {[%clk 0:03:03]}  a6 {[%clk 0:02:51]} 9. O-O-O {[%clk 0:03:02]}  O-O {[%clk 0:02:50]} 10. g4 {[%clk 0:03:03]}  Qc7 {[%clk 0:02:45]} 11. g5 {[%clk 0:03:02]}  Nd7 {[%clk 0:02:44]} 12. h4 {[%clk 0:03:00]}  Nxd4 {[%clk 0:02:43]} 13. Bxd4 {[%clk 0:03:00]}  b5 {[%clk 0:02:41]} 14. h5 {[%clk 0:02:58]}  Bb7 {[%clk 0:02:40]} 15. g6 {[%clk 0:02:58]}  fxg6 {[%clk 0:02:24]} 16. hxg6 {[%clk 0:02:59]}  h6 {[%clk 0:02:23]} 17. Rxh6 {[%clk 0:02:54]}  Nf6 {[%clk 0:02:17]} 18. Rdh1 {[%clk 0:02:49]}  e5 {[%clk 0:02:13]} 19. Rh8# {[%clk 0:02:48]} 1-0


[Site "https://www.chess.com"]

[Event "Titled Tuesday Blitz September 27 Early 2022"]
[White "Papasimakopoulos, Alexandros"]
[Black "Thorhallsson, Simon"]
[WhiteFideId "4244125"]
[BlackFideId "2310090"]
[WhiteElo "2357"]
[BlackElo "2137"]
[Result "1-0"]
[Round "01"]
[TimeControl "180+1"]
[Date "2022.09.27"]
[WhiteClock "0:00:08"]
[BlackClock "0:00:02"]

1. d4 {[%clk 0:02:44]}  d5 {[%clk 0:02:59]} 2. c4 {[%clk 0:02:43]}  e6 {[%clk 0:03:00]} 3. Nc3 {[%clk 0:02:43]}  c6 {[%clk 0:03:00]} 4. Nf3 {[%clk 0:02:39]}  dxc4 {[%clk 0:03:01]} 5. a4 {[%clk 0:02:37]}  Bb4 {[%clk 0:03:01]} 6. e3 {[%clk 0:02:37]}  b5 {[%clk 0:03:01]} 7. Bd2 {[%clk 0:02:35]}  Bb7 {[%clk 0:02:42]} 8. Rb1 {[%clk 0:02:33]}  a6 {[%clk 0:02:35]} 9. b3 {[%clk 0:02:16]}  cxb3 {[%clk 0:02:33]} 10. Qxb3 {[%clk 0:02:16]}  Be7 {[%clk 0:02:28]} 11. Be2 {[%clk 0:02:14]}  Nf6 {[%clk 0:02:27]} 12. O-O {[%clk 0:02:13]}  O-O {[%clk 0:02:26]} 13. Rfc1 {[%clk 0:02:13]}  b4 {[%clk 0:02:24]} 14. Nd1 {[%clk 0:01:45]}  a5 {[%clk 0:02:24]} 15. Ne5 {[%clk 0:01:45]}  c5 {[%clk 0:02:16]} 16. Bf3 {[%clk 0:01:31]}  Bxf3 {[%clk 0:02:15]} 17. Nxf3 {[%clk 0:01:31]}  Nbd7 {[%clk 0:02:09]} 18. Nb2 {[%clk 0:01:30]}  Ne4 {[%clk 0:02:04]} 19. Nc4 {[%clk 0:01:01]}  Nxd2 {[%clk 0:02:00]} 20. Ncxd2 {[%clk 0:01:00]}  cxd4 {[%clk 0:02:00]} 21. Nxd4 {[%clk 0:00:59]}  Nc5 {[%clk 0:01:54]} 22. Qc2 {[%clk 0:00:56]}  Rc8 {[%clk 0:01:50]} 23. Nc4 {[%clk 0:00:55]}  Qc7 {[%clk 0:01:23]} 24. Nb5 {[%clk 0:00:50]}  Qb8 {[%clk 0:01:16]} 25. Nxa5 {[%clk 0:00:44]}  b3 {[%clk 0:01:10]} 26. Qc4 {[%clk 0:00:20]}  b2 {[%clk 0:00:52]} 27. Rd1 {[%clk 0:00:18]}  Bf6 {[%clk 0:00:44]} 28. Qb4 {[%clk 0:00:12]}  Na6 {[%clk 0:00:23]} 29. Qb3 {[%clk 0:00:07]}  Qb6 {[%clk 0:00:22]} 30. Nc4 {[%clk 0:00:07]}  Qc5 {[%clk 0:00:22]} 31. Nxb2 {[%clk 0:00:08]}  Nb4 {[%clk 0:00:18]} 32. Nd3 {[%clk 0:00:08]}  Nxd3 {[%clk 0:00:18]} 33. Qxd3 {[%clk 0:00:08]}  Rfd8 {[%clk 0:00:18]} 34. Qe2 {[%clk 0:00:09]}  Rxd1+ {[%clk 0:00:18]} 35. Qxd1 {[%clk 0:00:08]}  g6 {[%clk 0:00:19]} 36. g3 {[%clk 0:00:08]}  Rd8 {[%clk 0:00:19]} 37. Qb3 {[%clk 0:00:08]}  Rd2 {[%clk 0:00:18]} 38. Rf1 {[%clk 0:00:06]}  Rb2 {[%clk 0:00:15]} 39. Qd3 {[%clk 0:00:06]}  Rb4 {[%clk 0:00:15]} 40. Qd7 {[%clk 0:00:06]}  Rxa4 {[%clk 0:00:10]} 41. Nd6 {[%clk 0:00:06]}  Ra7 {[%clk 0:00:10]} 42. Qc8+ {[%clk 0:00:04]}  Qxc8 {[%clk 0:00:09]} 43. Nxc8 {[%clk 0:00:04]}  Rc7 {[%clk 0:00:09]} 44. Nb6 {[%clk 0:00:05]}  Rc5 {[%clk 0:00:08]} 45. Na4 {[%clk 0:00:05]}  Rc2 {[%clk 0:00:08]} 46. Rb1 {[%clk 0:00:03]}  Kg7 {[%clk 0:00:08]} 47. Nb6 {[%clk 0:00:04]}  h5 {[%clk 0:00:08]} 48. Nd7 {[%clk 0:00:04]}  Ra2 {[%clk 0:00:07]} 49. Nc5 {[%clk 0:00:04]}  Ra1 {[%clk 0:00:07]} 50. Rxa1 {[%clk 0:00:04]}  Bxa1 {[%clk 0:00:08]} 51. Kg2 {[%clk 0:00:04]}  Bf6 {[%clk 0:00:08]} 52. Ne4 {[%clk 0:00:04]}  Be7 {[%clk 0:00:07]} 53. h3 {[%clk 0:00:03]}  e5 {[%clk 0:00:07]} 54. Nc3 {[%clk 0:00:03]}  f5 {[%clk 0:00:07]} 55. Nd5 {[%clk 0:00:04]}  Bd8 {[%clk 0:00:07]} 56. f3 {[%clk 0:00:04]}  Kf7 {[%clk 0:00:06]} 57. e4 {[%clk 0:00:05]}  fxe4 {[%clk 0:00:07]} 58. fxe4 {[%clk 0:00:05]}  Ke6 {[%clk 0:00:08]} 59. Kf3 {[%clk 0:00:06]}  g5 {[%clk 0:00:08]} 60. g4 {[%clk 0:00:06]}  hxg4+ {[%clk 0:00:07]} 61. Kxg4 {[%clk 0:00:06]}  Kd6 {[%clk 0:00:08]} 62. Ne3 {[%clk 0:00:06]}  Kc5 {[%clk 0:00:08]} 63. Kf5 {[%clk 0:00:07]}  Kd4 {[%clk 0:00:08]} 64. Ng4 {[%clk 0:00:07]}  Bc7 {[%clk 0:00:07]} 65. Nf6 {[%clk 0:00:08]}  Bd8 {[%clk 0:00:02]} 66. Nd7 {[%clk 0:00:08]} 1-0


[Site "https://www.chess.com"]

[Event "Titled Tuesday Blitz September 27 Early 2022"]
[White "Pinheiro, Iung Alicio de O."]
[Black "Roque Sola, Jose Luis"]
[WhiteFideId "2104350"]
[BlackFideId "5120390"]
[WhiteElo "2283"]
[BlackElo "1990"]
[Result "1-0"]
[Round "01"]
[TimeControl "180+1"]
[Date "2022.09.27"]
[WhiteClock "0:00:31"]
[BlackClock "0:00:08"]

1. e4 {[%clk 0:02:57]}  e6 {[%clk 0:02:59]} 2. d4 {[%clk 0:02:56]}  d5 {[%clk 0:02:55]} 3. e5 {[%clk 0:02:56]}  c5 {[%clk 0:02:55]} 4. c3 {[%clk 0:02:56]}  Nc6 {[%clk 0:02:55]} 5. Nf3 {[%clk 0:02:55]}  Nge7 {[%clk 0:02:54]} 6. Bd3 {[%clk 0:02:53]}  cxd4 {[%clk 0:02:53]} 7. O-O {[%clk 0:02:50]}  dxc3 {[%clk 0:02:52]} 8. Nxc3 {[%clk 0:02:49]}  Ng6 {[%clk 0:02:44]} 9. Re1 {[%clk 0:02:43]}  Be7 {[%clk 0:02:43]} 10. g3 {[%clk 0:02:40]}  a6 {[%clk 0:02:35]} 11. h4 {[%clk 0:02:40]}  Qc7 {[%clk 0:02:31]} 12. h5 {[%clk 0:02:38]}  Ngxe5 {[%clk 0:02:25]} 13. Bf4 {[%clk 0:01:59]}  Nxf3+ {[%clk 0:02:19]} 14. Qxf3 {[%clk 0:01:58]}  Qd8 {[%clk 0:02:07]} 15. Rad1 {[%clk 0:01:51]}  O-O {[%clk 0:01:49]} 16. Bb1 {[%clk 0:01:49]}  Bg5 {[%clk 0:01:40]} 17. Nxd5 {[%clk 0:01:42]}  exd5 {[%clk 0:01:04]} 18. Rxd5 {[%clk 0:01:39]}  Bg4 {[%clk 0:00:16]} 19. Qg2 {[%clk 0:01:05]}  Qb6 {[%clk 0:00:12]} 20. Rxg5 {[%clk 0:01:01]}  Qb4 {[%clk 0:00:11]} 21. Rc1 {[%clk 0:00:40]}  Be6 {[%clk 0:00:09]} 22. a3 {[%clk 0:00:32]}  Qxb2 {[%clk 0:00:09]} 23. Qe4 {[%clk 0:00:31]}  g6 {[%clk 0:00:08]} 24. hxg6 {[%clk 0:00:31]} 1-0


[Site "https://www.chess.com"]